fUSD/lending_fUSD_20251221
["ID","MTS","AMOUNT","RATE_DAILY","PERIOD"]
[399314483,1766286646637,-153.40188186,0.00017245,2]
[399314484,1766286646647,-595.37131296,0.00017245,2]
[399314485,1766286646656,-352.0,0.00017247,2]
[399314486,1766286646665,-200.0,0.00017342,2]
[399314487,1766286646674,-200.0,0.00017342,2]
[399314488,1766286646683,-200.0,0.00017342,2]
[399314489,1766286646692,-352.0,0.00017347,2]
[399314490,1766286646701,-243.12152731,0.0001741,2]
[399314491,1766286646710,-451.0,0.00017424,2]
[399314492,1766286646719,-293.0,0.00017431,2]
[399314493,1766286646728,-300.0,0.00017436,2]
[399314494,1766286646738,-300.0,0.00017436,2]
[399314495,1766286646747,-300.0,0.00017436,2]
[399314496,1766286646756,-166.66,0.0001744,2]
[399314497,1766286646765,-451.0,0.0001749,2]
[399314498,1766286646774,-451.0,0.00017498,2]
[399314499,1766286646783,-451.0,0.00017509,2]
[399314500,1766286646792,-200.0,0.00017515,2]
[399314501,1766286646801,-200.0,0.00017515,2]
[399314502,1766286646810,-151.0,0.00017518,2]
[399314503,1766286646819,-311.1,0.00017518,2]
[399314504,1766286646827,-451.0,0.0001752,2]
[399314505,1766286646836,-501.2628546,0.00017521,2]
[399314506,1766286646845,-211.04,0.00017527,2]
[399314507,1766286646854,-600.0,0.00017534,2]
[399314508,1766286646863,-276.16,0.00017583,2]
[399314509,1766286646872,-293.0,0.00017589,2]
[399314510,1766286646881,-9656.07862669,0.00017602,2]
[399314511,1766286646890,-160.66,0.00017633,2]
[399314512,1766286646899,-293.0,0.00017679,2]
[399314513,1766286646908,-200.0,0.0001769,2]
[399314514,1766286646917,-200.0,0.0001769,2]
[399314515,1766286646926,-293.0,0.00017719,2]
[399314516,1766286646936,-300.0,0.00017727,2]
[399314517,1766286646945,-300.0,0.00017727,2]
[399314518,1766286646953,-301.55735151,0.00017727,2]
[399314519,1766286646964,-9999.99,0.00017728,2]
[399314520,1766286646973,-3967.49,0.00017728,2]
[399314521,1766286646982,-29999.99,0.00017728,2]
[399314522,1766286646994,-352.0,0.00017786,2]
[399314523,1766286647006,-363.31673849,0.00017793,2]
[399314524,1766286647016,-617.40005154,0.00017793,2]
[399314525,1766286647025,-500.0,0.00017808,2]
[399314526,1766286647035,-451.0,0.00017852,2]
[399314527,1766286647044,-152.0,0.00017866,3]
[399314528,1766286647054,-192.6,0.00017896,2]
[399314529,1766286647063,-500.0,0.00017945,2]
[399314530,1766286647076,-166.66,0.00017949,2]
[399314531,1766286647086,-293.0,0.00017976,2]
[399314532,1766286647095,-293.0,0.00017994,2]
[399314533,1766286647104,-300.0,0.00017999,2]
[399314534,1766286647114,-8637.09131002,0.00018,7]
[399314535,1766286647123,-339248.18959855,0.00018,2]
[399314536,1766286647132,-12332.28828938,0.00018,2]
[399314537,1766286647142,-6000.0,0.00018,3]
[399314538,1766286647151,-6042.53600114,0.00018,2]
[399314539,1766286647160,-500.0,0.00018,2]
[399314540,1766286647170,-505.34755931,0.00018,2]
[399314541,1766286647179,-150.0,0.00018,2]
[399314542,1766286647188,-150.0,0.00018,2]
[399314543,1766286647198,-451.0,0.00018012,2]
[399314544,1766286647207,-152.0,0.00018015,4]
[399314545,1766286647216,-451.0,0.0001805,2]
[399314546,1766286647225,-500.0,0.00018082,2]
[399314547,1766286647235,-1000.0,0.00018082,2]
[399314548,1766286647244,-600.0,0.00018082,2]
[399314549,1766286647253,-1054.58,0.00018096,2]
[399314550,1766286647262,-152.0,0.00018165,5]
[399314551,1766286647272,-370.53107558,0.00018219,2]
[399314552,1766286647281,-300.0,0.00018287,2]
[399314553,1766286647290,-152.0,0.00018315,6]
[399314554,1766286647298,-150.0,0.00018333,2]
[399314555,1766286647308,-640.24385345,0.00018341,2]
[399314556,1766286647317,-451.0,0.00018349,2]
[399314557,1766286647326,-300.0,0.00018355,2]
[399314558,1766286647335,-309.49326248,0.00018355,2]
[399314559,1766286647345,-18395.32,0.00018356,2]
[399314560,1766286647354,-9656.07862669,0.00018357,2]
[399314561,1766286647363,-451.0,0.0001837,2]
[399314562,1766286647373,-150.0,0.000184,2]
[399314563,1766286647382,-152.0,0.00018464,7]
[399314564,1766286647391,-9345.4,0.00018489,2]
[399314565,1766286647400,-300.0,0.00018532,2]
[399314566,1766286647410,-152.0,0.00018614,8]
[399314567,1766286647419,-600.0,0.0001863,2]
[399314568,1766286647429,-1326.0,0.00018657,2]
[399314569,1766286647438,-1609.0,0.00018657,2]
[399314570,1766286647447,-612.0,0.00018657,2]
[399314571,1766286647456,-518.0,0.00018661,2]
[399314572,1766286647466,-563.663,0.00018661,2]
[399314573,1766286647476,-2429.0,0.00018661,2]
[399314574,1766286647485,-1197.0,0.00018661,2]
[399314575,1766286647495,-781.0,0.00018665,5]
[399314576,1766286647505,-150.0,0.00018667,2]
[399314577,1766286647517,-1000.0,0.00018694,2]
[399314578,1766286647526,-1000.0,0.0001876,2]
[399314579,1766286647536,-152.0,0.00018763,9]
[399314580,1766286647545,-150.0,0.00018794,2]
[399314581,1766286647554,-150.98,0.000188,2]
[399314582,1766286647563,-150.98,0.000188,2]
[399314583,1766286647573,-150.98,0.000188,2]
[399314584,1766286647582,-150.98,0.000188,2]
[399314585,1766286647591,-150.98,0.000188,2]
[399314586,1766286647600,-150.0,0.000188,2]
[399314587,1766286647610,-151.0,0.00018887,2]
[399314588,1766286647619,-322.6107,0.00018887,2]
[399314589,1766286647628,-599.60298507,0.00018888,2]
[399314590,1766286647639,-2346.0,0.00018888,2]
[399314591,1766286647648,-663.93287602,0.00018889,2]
[399314592,1766286647657,-3880.38469598,0.000189,3]
[399314593,1766286647667,-151.45204206,0.000189,2]
[399314594,1766286647676,-170.64,0.00018904,2]
[399314595,1766286647685,-170.64,0.00018904,2]
[399314596,1766286647694,-170.64,0.00018904,2]
[399314597,1766286647703,-1218.93,0.00018904,2]
[399314598,1766286647713,-170.64,0.00018904,2]
[399314599,1766286647723,-170.64,0.00018904,2]
[399314600,1766286647732,-1218.93,0.00018904,2]
[399314601,1766286647741,-170.64,0.00018904,2]
[399314602,1766286647750,-1218.93,0.00018904,2]
[399314603,1766286647759,-1218.93,0.00018904,2]
[399314604,1766286647768,-170.64,0.00018904,2]
[399314605,1766286647778,-168.44,0.00018904,2]
[399314606,1766286647787,-152.0,0.00018913,10]
[399314607,1766286647796,-300.0,0.00018999,2]
[399314608,1766286647805,-5000.0,0.00019,3]
[399314609,1766286647814,-1011.58318397,0.00019,2]
[399314610,1766286647824,-300.0,0.00019,2]
[399314611,1766286647833,-151.0,0.00019,2]
[399314612,1766286647843,-151.0,0.00019,2]
[399314613,1766286647852,-151.0,0.00019,2]
[399314614,1766286647862,-155.662047,0.00019,2]
[399314615,1766286647871,-151.0,0.00019,2]
[399314616,1766286647880,-151.0,0.00019,2]
[399314617,1766286647890,-150.0,0.00019,2]
[399314618,1766286647899,-83622.19689223,0.00019,2]
[399314619,1766286647908,-2703.09853607,0.00019,2]
[399314620,1766286647917,-188.621185,0.00019,2]
[399314621,1766286647927,-188.621185,0.00019,2]
[399314622,1766286647936,-188.621185,0.00019,2]
[399314623,1766286647945,-188.621185,0.00019,2]
[399314624,1766286647954,-152.0,0.00019062,11]
[399314625,1766286647964,-200.16540967,0.00019082,2]
[399314626,1766286647974,-153.52036111,0.00019101,2]
[399314627,1766286647983,-9656.07862669,0.00019112,2]
[399314628,1766286647997,-151.0,0.00019178,2]
[399314629,1766286648006,-600.0,0.00019178,2]
[399314630,1766286648016,-200.0,0.00019178,10]
[399314631,1766286648026,-150.0,0.000192,4]
[399314632,1766286648037,-20831.3746372,0.00019202,2]
[399314633,1766286648046,-26773.0530025,0.00019202,2]
[399314634,1766286648055,-7592.2943038,0.00019202,2]
[399314635,1766286648066,-152.0,0.00019212,12]
[399314636,1766286648075,-160.66,0.00019257,2]
[399314637,1766286648084,-150.0,0.00019333,4]
[399314638,1766286648093,-152.0,0.00019362,13]
[399314639,1766286648102,-688.49839244,0.00019437,2]
[399314640,1766286648111,-1000.0,0.00019438,2]
[399314641,1766286648121,-152.0,0.00019511,14]
[399314642,1766286648130,-160.66,0.00019516,2]
[399314643,1766286648139,-1500.0,0.00019534,7]
[399314644,1766286648154,-150.0,0.000196,4]
[399314645,1766286648170,-152.0,0.00019661,15]
[399314646,1766286648179,-150.0,0.00019667,4]
[399314647,1766286648189,-4648.1079589,0.00019694,2]
[399314648,1766286648200,-5973.8756041,0.00019694,2]
[399314649,1766286648209,-1694.0698439,0.00019694,2]
[399314650,1766286648219,-600.0,0.00019726,2]
[399314651,1766286648228,-211.04,0.00019774,2]
[399314652,1766286648238,-1255.0,0.000198,2]
[399314653,1766286648248,-153.40470949,0.000198,2]
[399314654,1766286648258,-154.0,0.000198,2]
[399314655,1766286648270,-3000.0,0.00019808,7]
[399314656,1766286648279,-3000.0,0.00019808,7]
[399314657,1766286648289,-152.0,0.0001981,16]
[399314658,1766286648298,-1171.64256301,0.0001995,15]
[399314659,1766286648308,-152.0,0.0001996,17]
[399314660,1766286648317,-713.97283296,0.00019985,2]
[399314661,1766286648326,-150.0,0.0002,4]
[399314662,1766286648336,-8300.0,0.0002,4]
[399314663,1766286648346,-73701.94046224,0.0002,2]
[399314664,1766286648355,-17233.15151084,0.0002,2]
[399314665,1766286648364,-3088.33,0.0002,2]
[399314666,1766286648373,-3950.0,0.0002,2]
[399314667,1766286648383,-7260.79780719,0.0002,2]
[399314668,1766286648392,-1289.3453801,0.0002,2]
[399314669,1766286648401,-1040.71717648,0.0002,2]
[399314670,1766286648410,-2851.99323284,0.0002,2]
[399314671,1766286648419,-12873.47236726,0.0002,2]
[399314672,1766286648429,-1400.3221861,0.0002,2]
[399314673,1766286648439,-500.0,0.0002,2]
[399314674,1766286648448,-5000.0,0.0002,3]
[399314675,1766286648458,-398.0,0.0002,2]
[399314676,1766286648468,-163.17,0.0002,2]
[399314677,1766286648478,-150.0,0.0002,4]
[399314678,1766286648488,-150.0,0.0002,20]
[399314679,1766286648497,-186.5,0.0002,2]
[399314680,1766286648507,-150.0,0.0002,2]
[399314681,1766286648517,-150.0,0.0002,2]
[399314682,1766286648528,-193.98082091,0.0002,2]
[399314683,1766286648537,-4000.0,0.0002,2]
[399314684,1766286648547,-500.0,0.00020001,2]
[399314685,1766286648556,-500.0,0.00020002,2]
[399314686,1766286648566,-499.9999,0.00020003,2]
[399314687,1766286648576,-1002.91327817,0.000201,2]
[399314688,1766286648585,-152.0,0.00020109,18]
[399314689,1766286648594,-1000.0,0.00020116,2]
[399314690,1766286648604,-1000.0,0.00020187,2]
[399314691,1766286648614,-151.0,0.00020256,2]
[399314692,1766286648623,-334.5472959,0.00020256,2]
[399314693,1766286648633,-152.0,0.00020259,19]
[399314694,1766286648642,-600.0,0.00020274,2]
[399314695,1766286648651,-152.0,0.00020409,20]
[399314696,1766286648660,-150.0,0.00020521,2]
[399314697,1766286648669,-150.0,0.00020521,2]
[399314698,1766286648678,-798.42533777,0.00020533,2]
[399314699,1766286648687,-9345.4,0.0002054,2]
[399314700,1766286648697,-191.91,0.00020548,2]
[399314701,1766286648706,-150.0,0.00020548,2]
[399314702,1766286648716,-1546.68,0.00020548,2]
[399314703,1766286648725,-150.0,0.00020548,2]
[399314704,1766286648734,-150.0,0.00020548,2]
[399314705,1766286648743,-150.0,0.00020548,2]
[399314706,1766286648753,-1218.93,0.00020548,2]
[399314707,1766286648761,-150.0,0.00020548,2]
[399314708,1766286648770,-1218.93,0.00020548,2]
[399314709,1766286648779,-150.0,0.00020548,2]
[399314710,1766286648789,-150.0,0.00020548,2]
[399314711,1766286648798,-150.0,0.00020548,2]
[399314712,1766286648807,-150.0,0.00020548,2]
[399314713,1766286648816,-1218.93,0.00020548,2]
[399314714,1766286648826,-150.0,0.00020548,2]
[399314715,1766286648836,-150.0,0.00020548,2]
[399314716,1766286648847,-1218.93,0.00020548,2]
[399314717,1766286648858,-150.0,0.00020548,2]
[399314718,1766286648868,-150.0,0.00020548,2]
[399314719,1766286648879,-150.0,0.00020548,2]
[399314720,1766286648889,-1218.93,0.00020548,2]
[399314721,1766286648899,-151.37,0.00020548,2]
[399314722,1766286648908,-1218.93,0.00020548,2]
[399314723,1766286648917,-151.59,0.00020548,2]
[399314724,1766286648926,-150.37,0.00020548,2]
[399314725,1766286648935,-150.7,0.00020548,2]
[399314726,1766286648944,-150.0,0.00020548,2]
[399314727,1766286648952,-150.0,0.00020548,2]
[399314728,1766286648962,-150.0,0.00020548,2]
[399314729,1766286648971,-150.0,0.00020548,2]
[399314730,1766286648980,-300.73,0.00020548,2]
[399314731,1766286648990,-150.84,0.00020548,2]
[399314732,1766286649003,-150.0,0.00020548,2]
[399314733,1766286649012,-150.0,0.00020548,2]
[399314734,1766286649021,-150.0,0.00020548,2]
[399314735,1766286649031,-150.0,0.00020548,2]
[399314736,1766286649041,-150.0,0.00020548,2]
[399314737,1766286649050,-150.0,0.00020548,2]
[399314738,1766286649059,-150.0,0.00020548,2]
[399314739,1766286649069,-150.77,0.00020548,2]
[399314740,1766286649079,-150.0,0.00020548,2]
[399314741,1766286649089,-150.0,0.00020548,2]
[399314742,1766286649100,-1107.58,0.00020548,2]
[399314743,1766286649109,-553.79,0.00020548,2]
[399314744,1766286649119,-152.46,0.00020548,2]
[399314745,1766286649128,-553.79,0.00020548,2]
[399314746,1766286649137,-152.0,0.00020558,21]
[399314747,1766286649147,-1000.0,0.00020563,2]
[399314748,1766286649155,-1500.0,0.0002063,7]
[399314749,1766286649164,-206.79834017,0.00020658,2]
[399314750,1766286649173,-2000.0,0.000207,2]
[399314751,1766286649184,-152.0,0.00020708,22]
[399314752,1766286649194,-1000.0,0.00020795,2]
[399314753,1766286649205,-600.0,0.00020822,2]
[399314754,1766286649214,-150.0,0.00020822,2]
[399314755,1766286649223,-150.0,0.00020822,2]
[399314756,1766286649233,-152.0,0.00020857,23]
[399314757,1766286649244,-3000.0,0.00020904,7]
[399314758,1766286649254,-3000.0,0.00020904,7]
[399314759,1766286649264,-180.0,0.00020949,2]
[399314760,1766286649274,-1188.248608,0.00021,2]
[399314761,1766286649286,-196.1372174,0.00021,2]
[399314762,1766286649295,-5000.0,0.00021,3]
[399314763,1766286649305,-350.0,0.00021,2]
[399314764,1766286649314,-152.0,0.00021007,24]
[399314765,1766286649325,-152.0,0.00021156,25]
[399314766,1766286649334,-236.88002226,0.00021189,2]
[399314767,1766286649343,-152.0,0.00021306,26]
[399314768,1766286649352,-600.0,0.0002137,2]
[399314769,1766286649362,-178.41,0.0002137,2]
[399314770,1766286649372,-178.41,0.0002137,2]
[399314771,1766286649381,-178.41,0.0002137,2]
[399314772,1766286649520,-178.41,0.0002137,2]
[399314773,1766286649534,-178.41,0.0002137,2]
[399314774,1766286649544,-178.41,0.0002137,2]
[399314775,1766286649554,-178.41,0.0002137,2]
[399314776,1766286649563,-178.41,0.0002137,2]
[399314777,1766286649572,-178.41,0.0002137,2]
[399314778,1766286649582,-178.41,0.0002137,2]
[399314779,1766286649592,-553.79,0.0002137,2]
[399314780,1766286649601,-178.41,0.0002137,2]
[399314781,1766286649611,-553.79,0.0002137,2]
[399314782,1766286649621,-553.79,0.0002137,2]
[399314783,1766286649631,-553.79,0.0002137,2]
[399314784,1766286649641,-553.9,0.0002137,2]
[399314785,1766286649651,-178.41,0.0002137,2]
[399314786,1766286649661,-178.41,0.0002137,2]
[399314787,1766286649673,-1107.14,0.0002137,2]
[399314788,1766286649684,-553.79,0.0002137,2]
[399314789,1766286649694,-553.79,0.0002137,2]
[399314790,1766286649703,-553.79,0.0002137,2]
[399314791,1766286649712,-1107.58,0.0002137,2]
[399314792,1766286649721,-356.82,0.0002137,2]
[399314793,1766286649730,-553.79,0.0002137,2]
[399314794,1766286649739,-178.41,0.0002137,2]
[399314795,1766286649750,-1099.41,0.0002137,2]
[399314796,1766286649760,-181.22,0.0002137,2]
[399314797,1766286649769,-178.41,0.0002137,2]
[399314798,1766286649779,-153.7122297,0.00021449,2]
[399314799,1766286649788,-152.0,0.00021456,27]
[399314800,1766286649798,-221.21908223,0.000215,2]
[399314801,1766286649807,-659.21,0.00021507,2]
[399314802,1766286649816,-659.21,0.00021507,2]
[399314803,1766286649826,-481.17,0.00021507,2]
[399314804,1766286649835,-659.21,0.00021507,2]
[399314805,1766286649846,-481.17,0.00021507,2]
[399314806,1766286649857,-1318.42,0.00021507,2]
[399314807,1766286649867,-481.17,0.00021507,2]
[399314808,1766286649878,-962.34,0.00021507,2]
[399314809,1766286649888,-659.21,0.00021507,2]
[399314810,1766286649898,-659.21,0.00021507,2]
[399314811,1766286649908,-481.25,0.00021507,2]
[399314812,1766286649919,-1318.42,0.00021507,2]
[399314813,1766286649930,-659.21,0.00021507,2]
[399314814,1766286649940,-659.21,0.00021507,2]
[399314815,1766286649950,-659.21,0.00021507,2]
[399314816,1766286649959,-659.21,0.00021507,2]
[399314817,1766286649968,-659.21,0.00021507,2]
[399314818,1766286649977,-659.21,0.00021507,2]
[399314819,1766286649987,-481.17,0.00021507,2]
[399314820,1766286650000,-659.21,0.00021507,2]
[399314821,1766286650009,-481.17,0.00021507,2]
[399314822,1766286650019,-481.17,0.00021507,2]
[399314823,1766286650028,-481.17,0.00021507,2]
[399314824,1766286650039,-481.17,0.00021507,2]
[399314825,1766286650048,-481.17,0.00021507,2]
[399314826,1766286650057,-481.17,0.00021507,2]
[399314827,1766286650067,-659.21,0.00021507,2]
[399314828,1766286650076,-481.17,0.00021507,2]
[399314829,1766286650085,-659.21,0.00021507,2]
[399314830,1766286650095,-659.21,0.00021507,2]
[399314831,1766286650104,-481.17,0.00021507,2]
[399314832,1766286650114,-481.25,0.00021507,2]
[399314833,1766286650125,-659.21,0.00021507,2]
[399314834,1766286650135,-150.0,0.00021525,2]
[399314835,1766286650145,-152.0,0.00021605,28]
[399314836,1766286650154,-1067.86812507,0.00021606,2]
[399314837,1766286650164,-1000.0,0.00021607,2]
[399314838,1766286650174,-151.0,0.00021625,2]
[399314839,1766286650184,-346.92554585,0.00021625,2]
[399314840,1766286650194,-621.78829552,0.00021627,2]
[399314841,1766286650206,-2346.0,0.00021627,2]
[399314842,1766286650216,-612.0,0.00021657,2]
[399314843,1766286650227,-187.425,0.00021661,2]
[399314844,1766286650237,-2429.0,0.00021661,2]
[399314845,1766286650248,-1197.0,0.00021661,2]
[399314846,1766286650259,-150.0,0.00021663,2]
[399314847,1766286650271,-1500.0,0.00021726,7]
[399314848,1766286650280,-152.0,0.00021755,29]
[399314849,1766286650290,-213.53,0.00021918,15]
[399314850,1766286650299,-5000.0,0.00021918,2]
[399314851,1766286650310,-151.0,0.00021918,2]
[399314852,1766286650319,-151.0,0.00021918,2]
[399314853,1766286650329,-500.0,0.00021918,2]
[399314854,1766286650339,-154.0,0.00021918,2]
[399314855,1766286650350,-164.0,0.00021918,2]
[399314856,1766286650360,-154.0,0.00021918,2]
[399314857,1766286650370,-164.0,0.00021918,2]
[399314858,1766286650380,-154.0,0.00021918,2]
[399314859,1766286650391,-164.0,0.00021918,2]
[399314860,1766286650402,-154.0,0.00021918,2]
[399314861,1766286650412,-172.10107555,0.00021918,2]
[399314862,1766286650422,-154.0,0.00021918,2]
[399314863,1766286650432,-154.0,0.00021918,2]
[399314864,1766286650443,-154.0,0.00021918,2]
[399314865,1766286650452,-154.0,0.00021918,2]
[399314866,1766286650462,-219.9981724,0.00021918,2]
[399314867,1766286650471,-600.0,0.00021918,5]
[399314868,1766286650481,-400.0,0.0002197,2]
[399314869,1766286650490,-400.0,0.0002197,2]
[399314870,1766286650500,-400.0,0.0002197,2]
[399314871,1766286650510,-6135.65409167,0.00022,2]
[399314872,1766286650520,-3000.0,0.00022,7]
[399314873,1766286650529,-3000.0,0.00022,7]
[399314874,1766286650539,-163.53,0.00022,2]
[399314875,1766286650548,-7570.84,0.00022,7]
[399314876,1766286650557,-500.0,0.00022,2]
[399314877,1766286650567,-500.0,0.00022,2]
[399314878,1766286650577,-530.0,0.00022,2]
[399314879,1766286650586,-709.09,0.00022,14]
[399314880,1766286650596,-200.0,0.00022,2]
[399314881,1766286650605,-2000.0,0.00022,2]
[399314882,1766286650615,-153.81211763,0.00022,2]
[399314883,1766286650624,-273.36222065,0.00022,2]
[399314884,1766286650633,-152.0,0.00022,2]
[399314885,1766286650642,-152.0,0.00022,2]
[399314886,1766286650651,-152.0,0.00022,2]
[399314887,1766286650660,-152.0,0.00022,2]
[399314888,1766286650670,-152.0,0.00022,2]
[399314889,1766286650679,-152.0,0.00022,2]
[399314890,1766286650689,-152.0,0.00022,2]
[399314891,1766286650698,-152.0,0.00022,2]
[399314892,1766286650707,-152.0,0.00022,2]
[399314893,1766286650717,-293.05210807,0.00022,2]
[399314894,1766286650728,-2838.101542,0.0002201,2]
[399314895,1766286650738,-152.0,0.00022054,31]
[399314896,1766286650747,-1036.33867014,0.00022148,5]
[399314897,1766286650756,-1103.89799367,0.00022148,5]
[399314898,1766286650765,-1128.97051079,0.00022148,5]
[399314899,1766286650774,-1131.01857379,0.00022148,5]
[399314900,1766286650783,-1105.31263503,0.00022148,5]
[399314901,1766286650792,-1141.06763763,0.00022148,5]
[399314902,1766286650800,-1143.11438057,0.00022148,5]
[399314903,1766286650808,-1015.06527156,0.00022148,5]
[399314904,1766286650817,-1006.40893064,0.00022148,5]
[399314905,1766286650825,-1038.57842564,0.00022148,5]
[399314906,1766286650833,-1102.06355101,0.00022148,5]
[399314907,1766286650843,-1017.32582844,0.00022148,5]
[399314908,1766286650852,-1104.37216542,0.00022148,5]
[399314909,1766286650861,-1122.10164471,0.00022148,5]
[399314910,1766286650870,-1084.55027937,0.00022148,5]
[399314911,1766286650878,-1093.9220612,0.00022148,5]
[399314912,1766286650887,-1066.74156036,0.00022148,5]
[399314913,1766286650897,-1008.06391037,0.00022148,5]
[399314914,1766286650905,-1081.95055339,0.00022148,5]
[399314915,1766286650914,-1084.50260185,0.00022148,5]
[399314916,1766286650924,-1035.21172402,0.00022148,5]
[399314917,1766286650933,-1113.84612763,0.00022148,5]
[399314918,1766286650943,-1126.59900824,0.00022148,5]
[399314919,1766286650952,-1068.053072,0.00022148,5]
[399314920,1766286650961,-981.93896682,0.00022148,5]
[399314921,1766286650970,-178.41,0.00022192,2]
[399314922,1766286650979,-353.05,0.00022192,2]
[399314923,1766286650988,-469.37,0.00022192,2]
[399314924,1766286651002,-553.79,0.00022192,2]
[399314925,1766286651012,-152.0,0.00022203,32]
[399314926,1766286651021,-165.26057485,0.00022266,2]
[399314927,1766286651030,-152.0,0.00022353,33]
[399314928,1766286651045,-1000.0,0.00022433,2]
[399314929,1766286651055,-961.94,0.00022466,2]
[399314930,1766286651065,-1316.34,0.00022466,2]
[399314931,1766286651075,-481.17,0.00022466,2]
[399314932,1766286651085,-659.21,0.00022466,2]
[399314933,1766286651094,-659.21,0.00022466,2]
[399314934,1766286651103,-481.17,0.00022466,2]
[399314935,1766286651114,-481.17,0.00022466,2]
[399314936,1766286651125,-169.87,0.00022466,2]
[399314937,1766286651134,-659.21,0.00022466,2]
[399314938,1766286651145,-245.85,0.00022466,2]
[399314939,1766286651155,-600.0,0.00022466,5]
[399314940,1766286651164,-2900.0,0.000225,15]
[399314941,1766286651174,-152.0,0.00022503,34]
[399314942,1766286651184,-9345.4,0.00022591,2]
[399314943,1766286651194,-321.87985655,0.000226,2]
[399314944,1766286651205,-1473.30710508,0.000226,30]
[399314945,1766286651215,-167.53394632,0.000226,2]
[399314946,1766286651225,-337.0,0.00022613,120]
[399314947,1766286651238,-202.0,0.00022613,120]
[399314948,1766286651248,-174.0,0.00022613,120]
[399314949,1766286651258,-152.0,0.00022652,35]
[399314950,1766286651269,-1000.0,0.0002274,2]
[399314951,1766286651279,-152.0,0.00022802,36]
[399314952,1766286651290,-1500.0,0.00022822,7]
[399314953,1766286651301,-163.0,0.00022946,120]
[399314954,1766286651313,-152.0,0.00022951,37]
[399314955,1766286651323,-162.0,0.00022968,120]
[399314956,1766286651334,-151.0,0.00022994,2]
[399314957,1766286651344,-359.76179104,0.00022994,2]
[399314958,1766286651354,-188.0,0.00022994,120]
[399314959,1766286651364,-1000.0,0.00023,14]
[399314960,1766286651374,-536.24751289,0.00023,2]
[399314961,1766286651384,-400.0,0.00023,2]
[399314962,1766286651394,-168.0,0.00023,7]
[399314963,1766286651404,-600.0,0.00023014,5]
[399314964,1766286651414,-464.6,0.00023014,2]
[399314965,1766286651425,-464.6,0.00023014,2]
[399314966,1766286651438,-464.6,0.00023014,2]
[399314967,1766286651447,-572.2,0.00023014,2]
[399314968,1766286651457,-464.6,0.00023014,2]
[399314969,1766286651466,-464.6,0.00023014,2]
[399314970,1766286651476,-464.6,0.00023014,2]
[399314971,1766286651485,-529.6,0.00023014,2]
[399314972,1766286651495,-464.6,0.00023014,2]
[399314973,1766286651505,-464.6,0.00023014,2]
[399314974,1766286651515,-464.6,0.00023014,2]
[399314975,1766286651525,-464.6,0.00023014,2]
[399314976,1766286651535,-464.6,0.00023014,2]
[399314977,1766286651544,-464.6,0.00023014,2]
[399314978,1766286651553,-464.6,0.00023014,2]
[399314979,1766286651563,-3000.0,0.00023096,7]
[399314980,1766286651572,-3000.0,0.00023096,7]
[399314981,1766286651582,-152.0,0.00023101,38]
[399314982,1766286651592,-152.0,0.0002325,39]